bitfinex-derivatives/quotes_SOLF0:USTF0_20260108
["timestamp","ask_amount","ask_price","bid_price","bid_amount"]
[1767840444473,5.94371515,137.07,137.03,3.9488899]
[1767840444669,6.5721,137.08,137.03,3.9488899]
[1767840444870,5.94460271,137.07,137.03,3.9488899]
[1767840445069,5.94460271,137.06,137.03,3.9488899]
[1767840445274,5.95482537,137.05,137.03,3.9488899]
[1767840445469,6.5721,137.08,137.03,3.9488899]
[1767840445672,5.95542841,137.07,137.03,3.9488899]
[1767840445870,5.95542841,137.06,137.03,3.9488899]
[1767840446071,5.95542841,137.05,137.03,3.9488899]
[1767840446366,6.5721,137.08,137.03,3.9488899]
[1767840448269,105.44162699,137.11,137.03,3.9488899]
[1767840448470,3.23092699,137.1,137.03,3.9488899]
[1767840449269,6.5715,137.09,137.03,3.9488899]
[1767840450979,3.23092699,137.1,137.03,10.5229899]
[1767840453981,3.23092699,137.1,137.04,3.95166766]
[1767840455981,0.05313045,137.08,137.04,3.95166766]
[1767840456181,0.05313045,137.08,137.06,0.05532511]
[1767840458781,3.28463839,137.13,137.06,4.00699277]
[1767840458978,5.4558468,137.12,137.06,4.00699277]
[1767840459181,5.4558468,137.11,137.06,4.00699277]
[1767840459379,5.4558468,137.1,137.06,4.00699277]
[1767840459682,5.4558468,137.09,137.06,4.00699277]
[1767840459870,3.28463839,137.13,137.06,4.00699277]
[1767840460073,5.45582043,137.12,137.06,4.00699277]
[1767840460275,5.45582043,137.11,137.06,4.00699277]
[1767840460483,5.45582043,137.1,137.06,4.00699277]
[1767840460684,9.85413839,137.13,137.06,4.00699277]
[1767840460875,5.4558881,137.12,137.06,4.00699277]
[1767840461076,5.4558881,137.11,137.06,4.00699277]
[1767840461384,9.85413839,137.13,137.06,4.00699277]
[1767840461581,5.45476829,137.12,137.07,3.95166766]
[1767840461780,5.45476829,137.11,137.07,3.95166766]
[1767840461982,6.5695,137.13,137.07,3.95166766]
[1767840462172,8.73929996,137.12,137.06,86.31532511]
[1767840462376,5.45466157,137.11,137.06,86.31532511]
[1767840462577,5.45466157,137.11,137.06,86.26]
[1767840462978,5.45466157,137.11,137.07,0.04654368]
[1767840464592,5.45466157,137.11,137.07,3.99821134]
[1767840464791,224.6671,137.23,137.07,3.99821134]
[1767840464792,3.28463839,137.19,137.09,3.95166766]
[1767840464993,3.28463839,137.22,137.12,3.95166766]
[1767840465298,6.5645,137.24,137.15,3.95166766]
[1767840465793,9.84913839,137.24,137.16,0.05292596]
[1767840466390,3.28463839,137.24,137.16,4.00459362]
[1767840466589,3.28463839,137.24,137.17,90.21166766]
[1767840467400,3.28463839,137.24,137.19,0.05061998]
[1767840468101,6.5641,137.25,137.15,86.24]
[1767840468102,3.33278458,137.23,137.15,86.24]
[1767840468895,3.33278458,137.23,137.15,90.19166766]
[1767840469795,3.33278458,137.23,137.18,0.04830708]
[1767840473608,188.3064,137.28,137.18,3.99997474]
[1767840473609,3.28463839,137.27,137.18,3.99997474]
[1767840473808,3.28463839,137.3,137.19,3.95166766]
[1767840473999,3.28463839,137.29,137.2,86.22]
[1767840474199,6.5621,137.29,137.2,86.22]
[1767840474398,3.28463839,137.28,137.2,86.22]
[1767840475508,3.28463839,137.28,137.23,0.05053112]
[1767840475801,3.28463839,137.27,137.23,0.05053112]
[1767840476102,3.28463839,137.27,137.19,3.95166766]
[1767840476695,3.28463839,137.27,137.18,86.2]
[1767840476895,3.23410727,137.24,137.16,3.95166766]
[1767840480405,3.23410727,137.23,137.16,3.95166766]
[1767840480605,3.23410727,137.23,137.15,86.2]
[1767840480997,3.23410727,137.23,137.14,86.2]
[1767840481212,3.23410727,137.21,137.14,86.2]
[1767840481710,3.23410727,137.21,137.13,10.52096766]
[1767840481711,3.23410727,137.2,137.13,3.95166766]
[1767840481898,3.23410727,137.2,137.11,86.18]
[1767840482911,3.23410727,137.2,137.11,90.07780967]
[1767840483705,9.80060727,137.2,137.11,90.07780967]
[1767840485413,9.8021142,137.19,137.11,90.07780967]
[1767840487311,6.5658,137.21,137.12,3.89780967]
[1767840488011,3.2353142,137.19,137.09,3.89780967]
[1767840489708,6.5677,137.17,137.09,3.89780967]
[1767840490108,9.8030142,137.17,137.09,3.89780967]
[1767840495026,3.2353142,137.16,137.09,3.89780967]
[1767840496832,3.2353142,137.19,137.1,3.89780967]
[1767840497017,3.2353142,137.19,137.12,3.89780967]
[1767840497525,3.2353142,137.22,137.13,3.89780967]
[1767840497729,5.36342235,137.21,137.14,3.89780967]
[1767840498023,3.2353142,137.22,137.14,90.11780967]
[1767840498229,5.36284095,137.21,137.14,90.11780967]
[1767840498429,3.2353142,137.22,137.14,90.11780967]
[1767840498630,5.36419773,137.21,137.14,90.11780967]
[1767840498928,3.2353142,137.22,137.14,90.11780967]
[1767840498929,3.2353142,137.22,137.15,3.89780967]
[1767840499129,3.2353142,137.25,137.15,3.89780967]
[1767840499337,11.92754317,137.24,137.16,3.89780967]
[1767840499624,3.2353142,137.25,137.18,3.89780967]
[1767840499825,9.7992142,137.25,137.18,3.89780967]
[1767840501428,3.2353142,137.23,137.17,86.22]
[1767840501634,3.2353142,137.23,137.14,92.93923705]
[1767840502333,5.3686969,137.22,137.14,92.93923705]
[1767840502534,9.8002142,137.23,137.14,99.50803705]
[1767840502734,5.36869448,137.22,137.14,99.50803705]
[1767840502935,9.8002142,137.23,137.14,99.50803705]
[1767840503136,5.36869448,137.22,137.14,99.50803705]
[1767840503427,9.8002142,137.23,137.15,3.89780967]
[1767840503635,5.37092494,137.22,137.15,3.89780967]
[1767840503934,9.8002142,137.23,137.15,3.89780967]
[1767840504236,5.37102726,137.22,137.15,3.89780967]
[1767840504428,9.8002142,137.23,137.15,3.89780967]
[1767840504628,5.37305298,137.22,137.15,3.89780967]
[1767840504928,9.8002142,137.23,137.15,3.89780967]
[1767840505128,5.37305298,137.22,137.15,3.89780967]
[1767840505323,5.37475578,137.21,137.15,3.89780967]
[1767840505530,9.8002142,137.23,137.15,3.89780967]
[1767840505732,5.37475578,137.22,137.15,3.89780967]
[1767840505933,5.37475578,137.21,137.15,3.89780967]
[1767840506123,9.8002142,137.23,137.15,3.89780967]
[1767840506322,5.37475578,137.22,137.15,3.89780967]
[1767840506535,5.37475578,137.21,137.15,3.89780967]
[1767840506727,9.8002142,137.23,137.15,3.89780967]
[1767840506931,8.61154627,137.22,137.15,3.89780967]
[1767840507235,8.61154627,137.21,137.15,3.89780967]
[1767840507437,5.37623207,137.2,137.15,3.89780967]
[1767840508125,8.61154627,137.2,137.12,10.46750967]
[1767840508332,3.2353142,137.18,137.12,3.89780967]
[1767840509431,0.05316962,137.19,137.12,3.89780967]
[1767840509635,0.05316962,137.19,137.13,10.46720967]
[1767840510337,0.05316962,137.19,137.14,10.46670967]
[1767840510738,0.05316962,137.19,137.14,3.89780967]
[1767840512327,3.9541236,137.17,137.06,102.2405]
[1767840512528,9.34301905,137.16,137.07,86.2]
[1767840512827,5.38951087,137.15,137.07,86.2]
[1767840513032,102.1371,137.21,137.07,89.04142738]
[1767840513033,3.9541236,137.19,137.07,89.04142738]
[1767840513235,5.3882613,137.18,137.07,89.04142738]
[1767840513437,3.9541236,137.26,137.13,105.03382738]
[1767840513636,5.38509678,137.25,137.14,86.2]
[1767840513842,5.38509678,137.24,137.14,86.2]
[1767840514035,6.564,137.25,137.16,6.5678]
[1767840514234,6.564,137.25,137.17,3.79151456]
[1767840514828,6.5644,137.24,137.17,3.79151456]
[1767840516747,10.5185236,137.24,137.17,3.79151456]
[1767840516941,5.38305712,137.23,137.17,3.79151456]
[1767840517131,10.5190236,137.23,137.14,10.36021456]
[1767840517444,5.38373114,137.22,137.16,86.2]
[1767840517643,10.5190236,137.23,137.16,86.2]
[1767840517837,5.38397005,137.22,137.16,86.2]
[1767840518032,10.5190236,137.23,137.16,86.2]
[1767840518238,5.38397005,137.22,137.16,86.2]
[1767840518440,10.5190236,137.23,137.16,86.2]
[1767840518745,5.38420964,137.22,137.17,3.79151456]
[1767840519037,6.5649,137.23,137.17,3.79151456]
[1767840519841,3.9541236,137.27,137.17,3.79151456]
[1767840520040,3.9541236,137.27,137.16,89.04142738]
[1767840520041,5.38444011,137.26,137.18,89.99151456]
[1767840520345,5.38444011,137.25,137.18,89.99151456]
[1767840520544,5.38444011,137.24,137.18,89.99151456]
[1767840520842,3.9541236,137.26,137.18,89.99151456]
[1767840521050,5.38501412,137.25,137.18,89.99151456]
[1767840521235,3.9541236,137.26,137.18,89.99151456]
[1767840521440,5.38455351,137.25,137.18,89.99151456]
[1767840521639,10.5175236,137.26,137.18,89.99151456]
[1767840521842,5.38465955,137.25,137.18,89.99151456]
[1767840522042,10.5175236,137.26,137.19,3.79151456]
[1767840522240,5.38465955,137.25,137.19,3.79151456]
[1767840522440,5.38465955,137.24,137.19,3.79151456]
[1767840522737,5.38442284,137.23,137.18,88.01511259]
[1767840522943,3.9541236,137.25,137.18,91.80662715]
[1767840523143,5.38432713,137.24,137.18,91.80662715]
[1767840523343,3.9541236,137.25,137.18,91.80662715]
[1767840523545,5.38413209,137.24,137.18,91.80662715]
[1767840523745,3.9541236,137.25,137.18,91.80662715]
[1767840523946,5.38413209,137.24,137.18,91.80662715]
[1767840524144,3.9541236,137.25,137.18,91.80662715]
[1767840524344,5.38413209,137.24,137.18,91.80662715]
[1767840524553,3.9541236,137.25,137.18,91.80662715]
[1767840524851,5.38379691,137.24,137.18,91.80662715]
[1767840525169,3.9541236,137.25,137.18,91.80662715]
[1767840525447,5.38379691,137.24,137.19,3.79151456]
[1767840525643,6.5634,137.26,137.19,3.79151456]
[1767840525839,5.38340379,137.25,137.19,3.79151456]
[1767840526039,10.5167236,137.28,137.2,1.81511259]
[1767840526248,5.38255955,137.27,137.21,86.18]
[1767840526443,5.38255955,137.26,137.21,86.18]
[1767840526647,5.38255955,137.25,137.21,86.18]
[1767840526841,10.5167236,137.28,137.16,102.1668]
[1767840526842,10.5158236,137.3,137.23,5.60662715]
[1767840527055,5.3800071,137.29,137.23,91.78662715]
[1767840527248,5.3800071,137.28,137.23,91.78662715]
[1767840527546,10.5158236,137.3,137.23,91.78662715]
[1767840527746,5.37721107,137.29,137.23,91.78662715]
[1767840527952,5.37721107,137.28,137.23,91.78662715]
[1767840528151,10.5158236,137.3,137.23,91.78662715]
[1767840528355,5.37711453,137.29,137.23,89.97151456]
[1767840528552,10.5158236,137.3,137.23,89.97151456]
[1767840528849,5.37479201,137.29,137.23,89.97151456]
[1767840529156,10.5158236,137.3,137.23,89.97151456]
[1767840529350,5.37469551,137.29,137.23,89.97151456]
[1767840529555,3.9541236,137.3,137.23,89.97151456]
[1767840529748,6.5611,137.31,137.24,86.18]
[1767840529944,5.37211645,137.3,137.24,91.78662715]
[1767840530243,6.5615,137.3,137.24,91.78662715]
[1767840531144,3.9541236,137.35,137.26,5.60662715]
[1767840531454,3.9541236,137.35,137.27,89.95151456]
[1767840531455,5.36867834,137.34,137.27,89.95151456]
[1767840531756,3.9541236,137.35,137.27,89.95151456]
[1767840531757,3.9541236,137.35,137.28,86.16]
[1767840532053,5.36394214,137.34,137.28,91.76662715]
[1767840532255,10.5132236,137.35,137.28,5.60662715]
[1767840532548,5.36099403,137.34,137.28,91.76662715]
[1767840532754,10.5132236,137.35,137.28,89.95151456]
[1767840532950,5.36062687,137.34,137.28,89.95151456]
[1767840533249,10.5132236,137.35,137.28,89.95151456]
[1767840533454,5.35838781,137.34,137.28,89.95151456]
[1767840533748,10.5132236,137.35,137.28,89.95151456]
[1767840533942,5.3583854,137.34,137.28,89.95151456]
[1767840534146,10.5132236,137.35,137.28,89.95151456]
[1767840534355,5.3583854,137.34,137.28,89.95151456]
[1767840534549,10.5132236,137.35,137.28,89.95151456]
[1767840534853,5.35657384,137.34,137.28,89.95151456]
[1767840535048,10.5132236,137.35,137.28,89.95151456]
[1767840538855,3.9541236,137.35,137.28,89.95151456]
[1767840539051,6.5586,137.36,137.29,5.60662715]
[1767840539956,0.04748997,137.34,137.29,5.60662715]
[1767840540153,0.04748997,137.34,137.29,89.93151456]
[1767840541156,6.60708997,137.34,137.27,1.81511259]
[1767840541347,10.56121357,137.34,137.28,86.14]
[1767840542352,3.8004519,137.33,137.27,86.14]
[1767840543654,6.5606,137.32,137.27,86.14]
[1767840545061,3.8004519,137.33,137.27,89.7680965]
[1767840545363,3.84802541,137.36,137.28,3.6280965]
[1767840545564,5.663138,137.38,137.28,3.6280965]
[1767840545763,5.663138,137.38,137.3,3.6280965]
[1767840546056,5.663138,137.38,137.3,89.7480965]
[1767840546260,6.5591,137.35,137.3,89.7480965]
[1767840546955,6.5591,137.35,137.3,86.12]
[1767840550554,3.84802541,137.35,137.27,1.81511259]
[1767840550760,3.84802541,137.33,137.27,86.12]
[1767840551762,3.84802541,137.33,137.27,89.7480965]
[1767840552158,3.84802541,137.33,137.27,91.56320909]
[1767840553562,10.40802541,137.33,137.27,91.56320909]
[1767840554862,6.56,137.33,137.28,3.6280965]
[1767840555365,6.56,137.33,137.27,87.93511259]
[1767840555566,10.40802541,137.33,137.27,87.93511259]
[1767840555756,10.40732541,137.35,137.27,91.56320909]
[1767840555961,10.40732541,137.35,137.28,3.6280965]
[1767840558459,10.40642541,137.37,137.28,3.6280965]
[1767840558659,10.40642541,137.37,137.3,3.6280965]
[1767840558660,3.84802541,137.37,137.3,3.6280965]
[1767840558871,3.84802541,137.4,137.32,3.6280965]
[1767840559761,3.84802541,137.4,137.28,102.0778]
[1767840559762,3.84802541,137.4,137.33,91.56320909]
[1767840559963,6.5565,137.41,137.34,3.6280965]
[1767840560165,5.663138,137.43,137.34,3.6280965]
[1767840560671,6.5562,137.41,137.34,3.6280965]
[1767840561672,3.84802541,137.4,137.33,86.12]
[1767840562056,6.5577,137.38,137.33,86.12]
[1767840562563,6.5577,137.38,137.32,3.6280965]
[1767840564562,6.5577,137.38,137.29,6.5617]
[1767840564563,3.84802541,137.43,137.33,3.6280965]
[1767840564761,3.84802541,137.43,137.35,3.6280965]
[1767840565167,3.84802541,137.43,137.36,1.81511259]
[1767840565362,3.84802541,137.43,137.36,91.54320909]
[1767840565563,10.40332541,137.43,137.36,91.54320909]
[1767840567375,6.5553,137.43,137.37,3.6280965]
[1767840569477,0.05277935,137.41,137.37,3.6280965]
[1767840569877,0.05277935,137.41,137.39,0.05358286]
[1767840571171,105.78852541,137.47,137.39,0.05358286]
[1767840571569,6.554,137.46,137.4,5.44320909]
[1767840571971,3.84802541,137.47,137.4,5.44320909]
[1767840572374,101.9151,137.51,137.42,1.81511259]
[1767840572375,3.80877167,137.49,137.42,1.81511259]
[1767840572674,3.80877167,137.49,137.42,1.86449646]
[1767840573681,6.553,137.48,137.42,1.86449646]
[1767840574681,6.553,137.48,137.42,0.04938387]
[1767840574880,10.36177167,137.48,137.42,0.04938387]
[1767840578383,6.553,137.48,137.42,3.93177399]
[1767840579286,3.80877167,137.5,137.43,3.88239012]
[1767840579881,6.5529,137.48,137.43,3.88239012]
[1767840580079,6.5529,137.48,137.45,0.05384035]
[1767840582183,1.81511259,137.55,137.46,5.69750271]
[1767840582688,187.9281,137.57,137.46,3.88239012]
[1767840582983,187.9281,137.57,137.49,0.05166343]
[1767840583390,86.06,137.57,137.49,0.05166343]
[1767840583584,114.9173,137.63,137.49,3.93405355]
[1767840583782,187.88,137.61,137.49,3.93405355]
[1767840583984,3.80877167,137.6,137.49,3.88239012]
[1767840584181,3.80877167,137.58,137.49,3.88239012]
[1767840584582,3.85761285,137.56,137.49,3.88239012]
[1767840584790,0.04884118,137.56,137.5,3.88239012]
[1767840585092,3.80877167,137.59,137.52,3.88239012]
[1767840585389,3.80877167,137.62,137.52,3.88239012]
[1767840585787,3.80877167,137.62,137.53,3.88239012]
[1767840586290,6.5469,137.61,137.56,0.04874574]
[1767840587289,3.80877167,137.62,137.56,0.04874574]
[1767840588686,10.35527167,137.62,137.56,0.04874574]
[1767840588888,3.80877167,137.62,137.56,0.04874574]
[1767840589687,6.5477,137.59,137.56,0.04874574]
[1767840593588,3.80877167,137.6,137.56,0.04874574]
[1767840594094,10.35607167,137.6,137.56,0.04874574]
[1767840594687,105.63497167,137.63,137.56,0.04874574]
[1767840595092,6.5467,137.61,137.56,0.04874574]
[1767840595693,6.5472,137.6,137.56,0.04874574]
[1767840595996,3.80877167,137.61,137.56,0.04874574]
[1767840597792,6.5464,137.62,137.56,0.04874574]
[1767840597992,6.5464,137.62,137.56,3.93113586]
[1767840598695,3.80877167,137.63,137.56,0.04874574]
[1767840599685,6.5468,137.61,137.56,0.04874574]
[1767840599898,3.80877167,137.63,137.56,0.04874574]
[1767840600286,10.35477167,137.63,137.56,3.93113586]
[1767840600490,3.80877167,137.66,137.56,3.93113586]
[1767840600695,3.80877167,137.66,137.57,3.88239012]
[1767840600999,18.07579228,137.69,137.59,3.88239012]
[1767840601194,18.07579228,137.69,137.61,3.88239012]
[1767840601905,3.80877167,137.68,137.59,85.98]
[1767840602290,3.80877167,137.68,137.59,89.65390995]
[1767840602690,3.80877167,137.68,137.59,3.67390995]
[1767840603391,3.80877167,137.68,137.57,89.90120544]
[1767840603392,3.84423586,137.66,137.57,89.90120544]
[1767840603801,3.84423586,137.66,137.58,3.94120544]
[1767840605691,6.5448,137.65,137.58,3.94120544]
[1767840606798,10.38793586,137.68,137.59,3.94120544]
[1767840607002,14.26702061,137.69,137.6,3.94120544]
[1767840607503,14.26702061,137.69,137.59,2.8248493]
[1767840607504,14.26702061,137.69,137.62,3.94120544]
[1767840608300,14.26702061,137.69,137.63,3.94120544]
[1767840610297,3.84423586,137.75,137.66,3.94120544]
[1767840610495,3.84423586,137.75,137.67,3.94120544]
[1767840610801,3.84423586,137.81,137.72,3.94120544]
[1767840610991,3.84423586,137.84,137.75,3.94120544]
[1767840611190,3.84423586,137.84,137.76,89.88120544]
[1767840611390,3.84423586,137.87,137.77,3.94120544]
[1767840611600,10.37873586,137.87,137.77,3.94120544]
[1767840612601,105.49643586,137.86,137.77,3.94120544]
[1767840612793,101.633,137.89,137.77,3.94120544]
[1767840612794,3.84423586,137.85,137.77,3.94120544]
[1767840612993,3.84423586,137.88,137.77,3.94120544]
[1767840613196,10.37873586,137.87,137.77,3.94120544]
[1767840613595,3.84423586,137.87,137.77,3.94120544]
[1767840613803,17.89644134,137.9,137.79,3.94120544]
[1767840614299,14.05220548,137.9,137.81,3.94120544]
[1767840614507,14.05220548,137.9,137.83,3.94120544]
[1767840614703,14.05220548,137.9,137.83,89.84120544]
[1767840617113,14.05220548,137.9,137.8,3.94120544]
[1767840617114,17.89644134,137.9,137.8,3.94120544]
[1767840617410,3.84423586,137.87,137.79,85.88]
[1767840617717,3.84423586,137.85,137.75,85.86]
[1767840617900,3.84423586,137.85,137.74,3.94120544]
[1767840618106,6.5357,137.84,137.75,3.94120544]
[1767840618405,3.84423586,137.83,137.75,3.94120544]
[1767840618605,10.38073586,137.83,137.75,3.94120544]
[1767840619010,3.84423586,137.8,137.7,3.94120544]
[1767840619508,112.07843586,137.8,137.7,3.94120544]
[1767840619809,3.84423586,137.79,137.7,3.94120544]
[1767840620813,105.54763586,137.79,137.7,3.94120544]
[1767840621706,6.5389,137.78,137.7,3.94120544]
[1767840622717,3.84423586,137.79,137.7,3.94120544]
[1767840628129,10.38263586,137.79,137.7,3.94120544]
[1767840629820,0.05367432,137.76,137.7,3.94120544]
[1767840630228,3.89791018,137.76,137.69,85.84]
[1767840631733,10.43771018,137.76,137.67,3.94120544]
[1767840631939,3.89791018,137.76,137.67,3.94120544]
[1767840632134,10.45398991,137.74,137.65,89.77200034]
[1767840632341,3.91328991,137.74,137.65,89.77200034]
[1767840632834,10.45438991,137.73,137.65,3.93200034]
[1767840633338,0.04894659,137.7,137.65,3.93200034]
[1767840633541,0.04894659,137.7,137.63,85.84]
[1767840634241,6.59144659,137.7,137.63,85.84]
[1767840635138,0.04894659,137.7,137.64,3.93200034]
[1767840644642,0.04894659,137.7,137.64,89.79200034]
[1767840645636,3.9622365,137.7,137.61,96.33830034]
[1767840645836,10.5046365,137.7,137.61,96.33830034]
[1767840646048,10.45568991,137.7,137.61,96.33830034]
[1767840646342,3.91328991,137.69,137.61,89.79200034]
[1767840646537,0.05078383,137.67,137.61,3.93200034]
[1767840647246,0.05078383,137.67,137.58,3.93200034]
[1767840647247,3.96407374,137.67,137.58,3.93200034]
[1767840647635,3.91328991,137.67,137.58,3.93200034]
[1767840648043,3.96510897,137.64,137.56,85.86]
[1767840649546,10.51060897,137.64,137.56,85.86]
[1767840655844,10.51060897,137.64,137.56,89.79200034]
[1767840656049,10.51060897,137.64,137.57,3.93200034]
[1767840656050,3.96510897,137.64,137.57,3.93200034]
[1767840656251,0.05181906,137.64,137.57,3.93200034]
[1767840656752,0.05181906,137.64,137.59,3.93200034]
[1767840657644,0.05181906,137.64,137.56,92.4086]
[1767840657849,0.05181906,137.64,137.56,89.79200034]
[1767840658243,0.05181906,137.64,137.57,10.48040034]
[1767840658442,0.05181906,137.64,137.58,3.93200034]
[1767840661052,10.45688991,137.68,137.59,3.93200034]
[1767840661457,6.5438,137.67,137.59,3.93200034]
[1767840661651,3.91328991,137.68,137.59,3.93200034]
[1767840662360,3.72774341,137.65,137.56,89.55538134]
[1767840663550,6.5453,137.64,137.56,89.55538134]
[1767840663854,3.77070223,137.63,137.53,3.62829655]
[1767840664049,3.77070223,137.63,137.53,89.54829655]
[1767840664250,3.77070223,137.65,137.55,3.62829655]
[1767840664448,3.77070223,137.7,137.57,3.62829655]
[1767840664655,3.77070223,137.7,137.58,3.62829655]
[1767840664851,3.77070223,137.7,137.6,3.62829655]
[1767840665653,6.5429,137.69,137.6,10.17519655]
[1767840666250,6.5429,137.69,137.63,0.05261023]
[1767840666447,0.05469902,137.66,137.63,0.05261023]
[1767840667863,3.77070223,137.7,137.63,0.05261023]
[1767840668871,10.31310223,137.7,137.63,0.05261023]
[1767840669564,3.77070223,137.68,137.63,0.05261023]
[1767840670564,3.77070223,137.68,137.6,85.92]
[1767840670565,6.544,137.67,137.6,85.92]
[1767840671668,3.77070223,137.68,137.6,85.92]
[1767840672167,10.31400223,137.68,137.6,85.92]
[1767840674270,3.77070223,137.68,137.6,10.17519655]
[1767840675465,10.31290223,137.71,137.62,3.62829655]
[1767840675772,3.77070223,137.71,137.62,3.62829655]
[1767840676173,0.05199572,137.68,137.65,0.04748888]
[1767840676367,3.77070223,137.74,137.65,3.67578543]
[1767840676572,3.77070223,137.74,137.65,5.43123015]
[1767840677073,3.77070223,137.74,137.65,11.97583015]
[1767840677673,3.77070223,137.74,137.68,0.05464458]
[1767840679563,10.31130223,137.74,137.68,0.05464458]
[1767840681578,6.5406,137.74,137.68,0.05464458]
[1767840683182,3.77070223,137.76,137.68,3.68294113]
[1767840685580,10.31030223,137.76,137.68,3.68294113]
[1767840689072,10.30940223,137.78,137.68,3.68294113]
[1767840689585,10.30940223,137.78,137.68,3.62829655]
[1767840689890,3.77070223,137.77,137.72,0.04670647]
[1767840690376,10.30980223,137.77,137.72,0.04670647]
[1767840691279,89.65070223,137.79,137.72,0.04670647]
[1767840691676,10.30980223,137.77,137.72,0.04670647]
[1767840691881,3.77070223,137.76,137.67,3.62829655]
[1767840692082,89.66113957,137.79,137.67,3.62829655]
[1767840692282,3.78113957,137.79,137.68,3.62401597]
[1767840692482,3.78113957,137.79,137.7,3.62401597]
[1767840693585,10.31923957,137.79,137.71,3.62401597]
[1767840696883,3.78113957,137.79,137.71,10.16561597]
[1767840697284,10.31853957,137.81,137.72,3.62401597]
[1767840697786,10.31853957,137.81,137.73,3.62401597]
[1767840698179,3.78113957,137.81,137.73,3.62401597]
[1767840698381,3.78113957,137.81,137.73,10.16461597]
[1767840698580,3.78113957,137.81,137.73,3.62401597]
[1767840699475,3.78113957,137.79,137.72,3.62401597]
[1767840700481,3.78113957,137.79,137.72,11.96626357]
[1767840700686,3.78113957,137.79,137.73,3.62401597]
[1767840701284,6.5371,137.81,137.73,3.62401597]
[1767840701489,3.78113957,137.82,137.74,5.42506357]
[1767840702188,3.78113957,137.82,137.75,3.62401597]
[1767840703483,6.5365,137.83,137.75,3.62401597]
[1767840703692,3.78113957,137.84,137.76,3.62401597]
[1767840704692,10.31683957,137.84,137.76,3.62401597]
[1767840705680,3.78113957,137.84,137.76,10.16331597]
[1767840706184,3.78113957,137.84,137.77,3.62401597]
[1767840706778,3.78113957,137.84,137.74,3.62401597]
[1767840706985,3.78113957,137.83,137.74,3.62401597]
[1767840707387,10.31833957,137.81,137.74,3.62401597]
[1767840708989,10.31873957,137.8,137.72,10.16531597]
[1767840709592,6.5382,137.79,137.72,3.62401597]
[1767840711894,3.78113957,137.78,137.7,3.62401597]
[1767840712097,3.78113957,137.77,137.67,3.62401597]
[1767840712786,3.78113957,137.74,137.67,3.62401597]
[1767840713099,3.78113957,137.74,137.65,85.84]
[1767840714691,10.32213957,137.73,137.65,85.84]
[1767840716797,10.32213957,137.73,137.65,89.46401597]
[1767840718989,10.32213957,137.73,137.65,3.62401597]
[1767840720694,10.32273957,137.72,137.65,3.62401597]
[1767840720901,3.78113957,137.71,137.63,3.62401597]
[1767840721599,3.78113957,137.7,137.63,3.62401597]
[1767840721798,3.78113957,137.7,137.62,85.84]
[1767840721994,3.83259267,137.76,137.65,3.76222775]
[1767840722396,3.64348356,137.81,137.73,3.59837536]
[1767840722702,3.64348356,137.84,137.75,3.59837536]
[1767840722897,3.64348356,137.84,137.76,3.59837536]
[1767840726199,6.5349,137.86,137.77,3.59837536]
[1767840726401,10.17838356,137.86,137.77,3.59837536]
[1767840726599,3.64348356,137.85,137.77,3.59837536]
[1767840728701,6.5359,137.84,137.77,3.59837536]
[1767840728901,3.64348356,137.84,137.74,3.59837536]
[1767840730500,10.18038356,137.82,137.74,3.59837536]
[1767840730805,3.64348356,137.81,137.72,89.43837536]
[1767840731004,0.04943424,137.79,137.72,89.43837536]
[1767840731202,3.6929178,137.79,137.72,3.59837536]
[1767840731607,10.2311178,137.79,137.72,3.59837536]
[1767840731815,10.2311178,137.79,137.69,6.4113996]
[1767840732004,3.64348356,137.78,137.69,3.59837536]
[1767840732204,3.64348356,137.77,137.69,3.59837536]
[1767840732509,3.64348356,137.77,137.66,10.14227536]
[1767840732812,10.23517177,137.75,137.67,3.59837536]
[1767840733010,3.64348356,137.74,137.67,3.59837536]
[1767840733310,0.05158821,137.75,137.67,3.59837536]
[1767840733513,3.64348356,137.77,137.67,3.59837536]
[1767840734100,3.64348356,137.77,137.69,3.59837536]
[1767840735207,3.64348356,137.79,137.7,3.59837536]
[1767840736810,3.64348356,137.79,137.7,10.14047536]
[1767840737107,3.64348356,137.79,137.71,3.59837536]
[1767840737697,3.64348356,137.86,137.77,6.4113996]
[1767840737903,3.64348356,137.86,137.78,3.59837536]
[1767840739408,3.64348356,137.86,137.78,10.13667536]
[1767840740109,10.17838356,137.86,137.78,3.59837536]
[1767840740303,3.64348356,137.85,137.76,6.5392]
[1767840740508,3.64348356,137.85,137.76,92.3792]
[1767840740707,3.64348356,137.85,137.76,6.5392]
[1767840740908,3.64348356,137.85,137.76,92.3792]
[1767840741114,3.64348356,137.85,137.77,3.59837536]
[1767840741317,10.17908356,137.85,137.77,3.59837536]
[1767840741910,3.64348356,137.85,137.77,3.59837536]
[1767840752126,10.17878356,137.85,137.77,3.59837536]
[1767840752922,3.85581793,137.84,137.77,3.59837536]
[1767840754822,3.85581793,137.84,137.76,92.3593]
[1767840755214,3.85581793,137.84,137.76,96.06414901]